bitfinex-derivatives/quotes_BTCF0:USTF0_20230101
["timestamp","ask_amount","ask_price","bid_price","bid_amount"]
[1672608448462,0.05189722,16619.0,16618.0,0.00619242]
[1672608448674,0.35259722,16619.0,16618.0,0.00619242]
[1672608450783,0.05189722,16619.0,16618.0,0.00619242]
[1672608451412,0.35259722,16619.0,16618.0,0.00619242]
[1672608455505,0.05189722,16619.0,16618.0,0.00619242]
[1672608455709,0.35259722,16619.0,16618.0,0.00619242]
[1672608472844,0.05189722,16619.0,16618.0,0.00619242]
[1672608473060,0.35259722,16619.0,16618.0,0.00619242]
[1672608473375,0.05189722,16619.0,16618.0,0.00619242]
[1672608473902,0.35259722,16619.0,16618.0,0.00619242]
[1672608475793,0.05189722,16619.0,16618.0,0.00619242]
[1672608476007,0.35259722,16619.0,16618.0,0.00619242]
[1672608480417,0.35259722,16619.0,16618.0,0.00612379]
[1672608483666,0.05189722,16619.0,16618.0,0.00612379]
[1672608483885,0.35259722,16619.0,16618.0,0.00612379]
[1672608491037,0.05189722,16619.0,16618.0,0.00612379]
[1672608491245,0.35259722,16619.0,16618.0,0.00612379]
[1672608494081,0.05189722,16619.0,16618.0,0.00612379]
[1672608494283,0.35259722,16619.0,16618.0,0.00612379]
[1672608495651,0.05189722,16619.0,16618.0,0.00612379]
[1672608495864,0.35259722,16619.0,16618.0,0.00612379]
[1672608498276,0.35259722,16619.0,16618.0,0.00551142]
[1672608507952,0.35259722,16619.0,16618.0,0.00496028]
[1672608510050,0.35259722,16619.0,16618.0,0.00446426]
[1672608512051,0.35259722,16619.0,16618.0,0.00401784]
[1672608513733,0.05189722,16619.0,16618.0,0.00401784]
[1672608513945,0.35259722,16619.0,16618.0,0.00401784]
[1672608514154,0.35259722,16619.0,16618.0,0.00361606]
[1672608516985,0.05189722,16619.0,16618.0,0.00361606]
[1672608517192,0.35259722,16619.0,16618.0,0.00361606]
[1672608519404,0.05189722,16619.0,16618.0,0.00361606]
[1672608519725,0.35259722,16619.0,16618.0,0.00361606]
[1672608522033,0.05189722,16619.0,16618.0,0.00361606]
[1672608522348,0.35259722,16619.0,16618.0,0.00361606]
[1672608522982,0.35259722,16619.0,16618.0,0.00325446]
[1672608525086,0.35259722,16619.0,16618.0,0.00292902]
[1672608525614,0.05189722,16619.0,16618.0,0.00292902]
[1672608526133,0.35259722,16619.0,16618.0,0.00292902]
[1672608527182,0.35259722,16619.0,16618.0,0.00263612]
[1672608527819,0.05189722,16619.0,16618.0,0.00263612]
[1672608528023,0.35259722,16619.0,16618.0,0.00263612]
[1672608528659,0.05189722,16619.0,16618.0,0.00263612]
[1672608528861,0.35259722,16619.0,16618.0,0.00263612]
[1672608529070,0.35259722,16619.0,16618.0,0.00237251]
[1672608530756,0.05189722,16619.0,16618.0,0.00237251]
[1672608531282,0.35259722,16619.0,16618.0,0.00237251]
[1672608531815,0.05189722,16619.0,16618.0,0.00237251]
[1672608532026,0.35259722,16619.0,16618.0,0.00237251]
[1672608536751,0.05189722,16619.0,16618.0,0.00237251]
[1672608536959,0.35259722,16619.0,16618.0,0.00237251]
[1672608537811,0.05189722,16619.0,16618.0,0.00237251]
[1672608538015,0.35259722,16619.0,16618.0,0.00213526]
[1672608540007,0.35259722,16619.0,16618.0,0.00192174]
[1672608541062,0.05189722,16619.0,16618.0,0.00192174]
[1672608541590,0.35259722,16619.0,16618.0,0.00192174]
[1672608542007,0.05189722,16619.0,16618.0,0.00172957]
[1672608542212,0.35259722,16619.0,16618.0,0.00172957]
[1672608544220,0.35259722,16619.0,16618.0,0.00155662]
[1672608549690,0.05189722,16619.0,16618.0,0.00155662]
[1672608550007,0.35259722,16619.0,16618.0,0.00155662]
[1672608559239,0.3027,16619.0,16618.0,0.00155662]
[1672608565136,0.002,16619.0,16618.0,0.00155662]
[1672608565558,0.052,16619.0,16618.0,0.00155662]
[1672608594353,0.052,16619.0,16618.0,0.00139746]
[1672608610221,0.3527,16619.0,16618.0,0.00139746]
[1672608617064,0.052,16619.0,16618.0,0.00139746]
[1672608617267,0.3527,16619.0,16618.0,0.00139746]
[1672608625150,0.052,16619.0,16618.0,0.00139746]
[1672608625359,0.3527,16619.0,16618.0,0.00139746]
[1672608630085,0.3527,16619.0,16618.0,0.00125772]
[1672608632192,0.3527,16619.0,16618.0,0.00113195]
[1672608633565,0.052,16619.0,16618.0,0.00113195]
[1672608633880,0.3527,16619.0,16618.0,0.00113195]
[1672608634196,0.052,16619.0,16618.0,0.00101876]
[1672608634398,0.3527,16619.0,16618.0,0.00101876]
[1672608635035,0.052,16619.0,16618.0,0.00101876]
[1672608635234,0.3527,16619.0,16618.0,0.00101876]
[1672608638712,0.052,16619.0,16618.0,0.00101876]
[1672608638919,0.3527,16619.0,16618.0,0.00101876]
[1672608643126,0.3527,16619.0,16618.0,0.00091689]
[1672608645132,0.3527,16619.0,16618.0,0.00082521]
[1672608647115,0.3527,16619.0,16618.0,0.00074269]
[1672608649219,0.3527,16619.0,16618.0,0.00066843]
[1672608650591,0.052,16619.0,16618.0,0.00066843]
[1672608650803,0.3527,16619.0,16618.0,0.00066843]
[1672608651112,0.052,16619.0,16618.0,0.00066843]
[1672608651328,0.3527,16619.0,16618.0,0.00066843]
[1672608652483,0.052,16619.0,16618.0,0.00066843]
[1672608652696,0.3527,16619.0,16618.0,0.00066843]
[1672608653635,0.052,16619.0,16618.0,0.00066843]
[1672608653844,0.3527,16619.0,16618.0,0.00066843]
[1672608655311,0.052,16619.0,16618.0,0.00066843]
[1672608655525,0.3527,16619.0,16618.0,0.00066843]
[1672608657327,0.052,16619.0,16618.0,0.00066843]
[1672608657537,0.3527,16619.0,16618.0,0.00066843]
[1672608658278,0.3527,16619.0,16618.0,0.00060159]
[1672608660158,0.3527,16619.0,16618.0,0.00054144]
[1672608662363,0.3527,16619.0,16618.0,0.00048144]
[1672608664161,0.3527,16619.0,16618.0,0.00042144]
[1672608675640,0.052,16619.0,16618.0,0.00042144]
[1672608675850,0.3527,16619.0,16618.0,0.00042144]
[1672608680575,0.3527,16619.0,16618.0,0.00036144]
[1672608682790,0.3527,16619.0,16618.0,0.00030144]
[1672608684683,0.3527,16619.0,16618.0,0.00024144]
[1672608686674,0.3527,16619.0,16618.0,0.00018144]
[1672608695698,0.3527,16619.0,16618.0,0.00012144]
[1672608696530,0.052,16619.0,16618.0,0.00012144]
[1672608697069,0.3527,16619.0,16618.0,0.00012144]
[1672608697687,0.3527,16619.0,16618.0,6.144e-05]
[1672608699257,0.052,16619.0,16618.0,6.144e-05]
[1672608699684,0.052,16619.0,16618.0,1.44e-06]
[1672608699994,0.3527,16619.0,16618.0,1.44e-06]
[1672608701777,5.856e-05,16617.0,16615.0,0.6517]
[1672608703258,0.01105856,16617.0,16615.0,0.6517]
[1672608703573,0.31175856,16617.0,16615.0,0.6517]
[1672608707144,0.05,16616.0,16615.0,0.6517]
[1672608709038,0.061,16616.0,16615.0,0.6517]
[1672608715447,0.061,16616.0,16615.0,0.05]
[1672608721437,0.011,16616.0,16615.0,0.05]
[1672608728907,0.011,16616.0,16614.0,0.6095]
[1672608729324,0.011,16616.0,16615.0,0.05]
[1672608746983,0.3117,16616.0,16615.0,0.05]
[1672608750245,0.05,16615.0,16614.0,0.3088]
[1672608750441,0.05,16615.0,16614.0,0.05]
[1672608751502,0.05,16615.0,16614.0,0.105]
[1672608752972,0.05,16615.0,16614.0,0.10482842]
[1672608799120,0.05,16615.0,16614.0,0.10476679]
[1672608806685,0.061,16615.0,16614.0,0.04976679]
[1672608807108,0.05,16615.0,16614.0,0.10476679]
[1672608808162,0.05,16615.0,16614.0,0.04976679]
[1672608808373,0.061,16615.0,16614.0,0.04976679]
[1672608831081,0.061,16615.0,16613.0,0.9524]
[1672608831813,0.061,16615.0,16613.0,0.05]
[1672608832031,0.05,16615.0,16613.0,1.0074]
[1672608833811,0.05,16615.0,16613.0,0.7067]
[1672608834018,0.05,16615.0,16613.0,1.0074]
[1672608839183,0.05,16615.0,16613.0,0.9574]
[1672608841592,0.05,16615.0,16614.0,0.05]
[1672608843281,0.061,16615.0,16614.0,0.05]
[1672608850744,0.061,16615.0,16614.0,0.04980305]
[1672608872408,0.061,16615.0,16613.0,0.9024]
[1672608872615,0.061,16615.0,16613.0,0.6017]
[1672608872833,0.061,16615.0,16613.0,0.9024]
[1672608873469,0.061,16615.0,16614.0,0.05]
[1672608873470,0.05,16615.0,16614.0,0.05]
[1672608875670,0.061,16615.0,16614.0,0.05]
[1672608881772,0.06088348,16615.0,16614.0,0.05]
[1672608888175,0.06088348,16615.0,16614.0,0.3507]
[1672608899533,0.06088348,16615.0,16614.0,0.05]
[1672608906780,0.06088348,16615.0,16613.0,0.9024]
[1672608907829,0.04988348,16615.0,16613.0,0.9024]
[1672608908041,0.04988348,16615.0,16613.0,0.9574]
[1672608909935,0.04988348,16615.0,16614.0,0.05]
[1672608911192,0.06088348,16615.0,16614.0,0.05]
[1672608911404,0.04988348,16615.0,16614.0,0.05]
[1672608911604,0.06088348,16615.0,16614.0,0.054]
[1672608912243,0.3007,16620.0,16614.0,0.054]
[1672608912452,0.3007,16620.0,16617.0,0.3007]
[1672608912659,0.3007,16620.0,16615.0,0.05]
[1672608912660,0.05,16619.0,16615.0,0.3507]
[1672608912863,0.05,16619.0,16615.0,0.9524]
[1672608913927,0.05,16619.0,16615.0,0.9584]
[1672608915183,0.05,16619.0,16617.0,0.3007]
[1672608916971,0.05,16619.0,16618.0,0.05]
[1672608918232,0.05,16619.0,16618.0,0.06]
[1672608918862,0.7955,16621.0,16618.0,0.06]
[1672608919074,0.05,16621.0,16618.0,0.06]
[1672608919297,0.05,16621.0,16619.0,0.3007]
[1672608919506,0.05,16621.0,16620.0,0.05]
[1672608920652,0.05,16621.0,16620.0,0.06]
[1672608922668,0.05,16621.0,16620.0,0.01]
[1672608922669,0.3507,16621.0,16620.0,0.01]
[1672608924023,0.05,16621.0,16620.0,0.01]
[1672608924236,0.3507,16621.0,16620.0,0.01]
[1672608926963,0.05,16621.0,16620.0,0.01]
[1672608938531,0.05,16621.0,16620.0,0.3107]
[1672608939268,0.05,16621.0,16620.0,0.01]
[1672608942419,0.05,16621.0,16620.0,0.06]
[1672608945459,0.05,16621.0,16620.0,0.01]
[1672608956816,0.05,16621.0,16620.0,0.00977632]
[1672608966691,0.05,16621.0,16620.0,0.05977632]
[1672608982978,0.05,16621.0,16620.0,0.00977632]
[1672608989615,0.177,16621.0,16620.0,0.002]
[1672608998337,0.4777,16621.0,16620.0,0.002]
[1672609006533,0.177,16621.0,16620.0,0.002]
[1672609006730,0.4777,16621.0,16620.0,0.002]
[1672609006943,0.4777,16621.0,16620.0,0.00182701]
[1672609011471,0.177,16621.0,16620.0,0.00182701]
[1672609011683,0.4777,16621.0,16620.0,0.00182701]
[1672609028620,0.177,16621.0,16620.0,0.00182701]
[1672609028931,0.4777,16621.0,16620.0,0.00182701]
[1672609031454,0.177,16621.0,16620.0,0.00182701]
[1672609031672,0.4777,16621.0,16620.0,0.00182701]
[1672609033658,0.177,16621.0,16620.0,0.00182701]
[1672609033869,0.4777,16621.0,16620.0,0.00182701]
[1672609035028,0.177,16621.0,16620.0,0.00182701]
[1672609035239,0.4777,16621.0,16620.0,0.00182701]
[1672609037543,0.177,16621.0,16620.0,0.00182701]
[1672609037756,0.4777,16621.0,16620.0,0.00182701]
[1672609044721,0.177,16621.0,16620.0,0.00182701]
[1672609044935,0.4777,16621.0,16620.0,0.00182701]
[1672609045362,0.177,16621.0,16620.0,0.00182701]
[1672609045572,0.4777,16621.0,16620.0,0.00182701]
[1672609047892,0.177,16621.0,16620.0,0.00182701]
[1672609048087,0.4777,16621.0,16620.0,0.00182701]
[1672609053134,0.177,16621.0,16620.0,0.00182701]
[1672609053349,0.4777,16621.0,16620.0,0.00182701]
[1672609057137,0.177,16621.0,16620.0,0.00182701]
[1672609057454,0.4777,16621.0,16620.0,0.00182701]
[1672609057870,0.177,16621.0,16620.0,0.00182701]
[1672609058079,0.4777,16621.0,16620.0,0.00182701]
[1672609058711,0.177,16621.0,16620.0,0.00182701]
[1672609058916,0.4777,16621.0,16620.0,0.00182701]
[1672609059131,0.177,16621.0,16620.0,0.00172793]
[1672609059340,0.4777,16621.0,16620.0,0.00172793]
[1672609059663,0.177,16621.0,16620.0,0.00172793]
[1672609059971,0.4777,16621.0,16620.0,0.00172793]
[1672609061548,0.177,16621.0,16620.0,0.00172793]
[1672609061962,0.4777,16621.0,16620.0,0.00172793]
[1672609062912,0.17682658,16621.0,16620.0,0.00172793]
[1672609063222,0.47752658,16621.0,16620.0,0.00172793]
[1672609067522,0.17682658,16621.0,16620.0,0.00172793]
[1672609067724,0.47752658,16621.0,16620.0,0.00172793]
[1672609071408,0.17682658,16621.0,16620.0,0.00172793]
[1672609071626,0.47752658,16621.0,16620.0,0.00172793]
[1672609075726,0.17682658,16621.0,16620.0,0.00172793]
[1672609075928,0.47752658,16621.0,16620.0,0.00172793]
[1672609077201,0.47752658,16621.0,16620.0,0.00155514]
[1672609083082,0.17682658,16621.0,16620.0,0.00155514]
[1672609083292,0.47752658,16621.0,16620.0,0.00155514]
[1672609084124,0.17682658,16621.0,16620.0,0.00155514]
[1672609084337,0.47752658,16621.0,16620.0,0.00155514]
[1672609092859,0.17682658,16621.0,16620.0,0.00155514]
[1672609093075,0.47752658,16621.0,16620.0,0.00155514]
[1672609097167,0.17682658,16621.0,16620.0,0.00155514]
[1672609097379,0.47752658,16621.0,16620.0,0.00155514]
[1672609103056,0.17682658,16621.0,16620.0,0.00155514]
[1672609103268,0.47752658,16621.0,16620.0,0.00155514]
[1672609103795,0.17682658,16621.0,16620.0,0.00155514]
[1672609104004,0.47752658,16621.0,16620.0,0.00155514]
[1672609107586,0.17682658,16621.0,16620.0,0.00155514]
[1672609107804,0.47752658,16621.0,16620.0,0.00155514]
[1672609112002,0.17682658,16621.0,16620.0,0.00155514]
[1672609112219,0.47752658,16621.0,16620.0,0.00155514]
[1672609118618,0.17682658,16621.0,16620.0,0.00155514]
[1672609118831,0.47752658,16621.0,16620.0,0.00155514]
[1672609120624,0.47752658,16621.0,16620.0,0.00139963]
[1672609122524,0.47752658,16621.0,16620.0,0.00125967]
[1672609127457,0.17682658,16621.0,16620.0,0.00125967]
[1672609127668,0.47752658,16621.0,16620.0,0.00125967]
[1672609132832,0.17682658,16621.0,16620.0,0.00125967]
[1672609133040,0.47752658,16621.0,16620.0,0.00125967]
[1672609168267,0.05,16620.0,16619.0,0.01515967]
[1672609168682,0.05,16620.0,16617.0,0.3507]
[1672609169631,0.183,16620.0,16619.0,0.001]
[1672609169848,0.05,16620.0,16617.0,0.3507]
[1672609170039,0.178,16620.0,16617.0,0.3517]
[1672609171731,0.178,16620.0,16617.0,0.6517]
[1672609173830,0.178,16620.0,16619.0,0.3007]
[1672609174982,0.183,16620.0,16619.0,0.3017]
[1672609180465,0.183,16620.0,16619.0,0.001]
[1672609180675,0.183,16620.0,16619.0,0.3017]
[1672609181606,0.183,16620.0,16619.0,0.001]
[1672609181819,0.183,16620.0,16619.0,0.3017]
[1672609184659,0.183,16620.0,16619.0,0.001]
[1672609194964,0.183,16620.0,16619.0,0.3017]
[1672609196967,0.183,16620.0,16619.0,0.001]
[1672609214092,0.183,16620.0,16619.0,0.00079017]
[1672609243750,0.4837,16620.0,16619.0,0.00079017]
[1672609256984,0.183,16620.0,16619.0,0.00079017]
[1672609257191,0.4837,16620.0,16619.0,0.00079017]
[1672609266015,0.183,16620.0,16619.0,0.00079017]
[1672609266230,0.4837,16620.0,16619.0,0.00079017]
[1672609266968,0.183,16620.0,16619.0,0.00079017]
[1672609267176,0.4837,16620.0,16619.0,0.00079017]
[1672609267811,0.4837,16620.0,16619.0,0.00060787]
[1672609273901,0.183,16620.0,16619.0,0.00060787]
[1672609274220,0.4837,16620.0,16619.0,0.00060787]
[1672609274848,0.183,16620.0,16619.0,0.00060787]
[1672609275061,0.4837,16620.0,16619.0,0.00060787]
[1672609276946,0.183,16620.0,16619.0,0.00060787]
[1672609277160,0.4837,16620.0,16619.0,0.00060787]
[1672609278952,0.183,16620.0,16619.0,0.00060787]
[1672609279159,0.4837,16620.0,16619.0,0.00060787]
[1672609280628,0.183,16620.0,16619.0,0.00060787]
[1672609280951,0.4837,16620.0,16619.0,0.00060787]
[1672609285048,0.183,16620.0,16619.0,0.00060787]
[1672609285250,0.4837,16620.0,16619.0,0.00060787]
[1672609292819,0.183,16620.0,16619.0,0.00060787]
[1672609293135,0.4837,16620.0,16619.0,0.00060787]
[1672609303012,0.183,16620.0,16619.0,0.00060787]
[1672609303231,0.4837,16620.0,16619.0,0.00060787]
[1672609306487,0.183,16620.0,16619.0,0.00060787]
[1672609306687,0.4837,16620.0,16619.0,0.00060787]
[1672609309425,0.183,16620.0,16619.0,0.00060787]
[1672609309638,0.4837,16620.0,16619.0,0.00060787]
[1672609311953,0.183,16620.0,16619.0,0.00060787]
[1672609312161,0.4837,16620.0,16619.0,0.00060787]
[1672609314994,0.183,16620.0,16619.0,0.00060787]
[1672609315201,0.4837,16620.0,16619.0,0.00060787]
[1672609318251,0.4837,16620.0,16619.0,0.00040121]
[1672609320045,0.183,16620.0,16619.0,0.00040121]
[1672609320252,0.4837,16620.0,16619.0,0.00040121]
[1672609321607,0.183,16620.0,16619.0,0.00040121]
[1672609321820,0.4837,16620.0,16619.0,0.00040121]
[1672609328239,0.48356987,16620.0,16619.0,0.00040121]
[1672609335802,0.18286987,16620.0,16619.0,0.00040121]
[1672609351889,0.48356987,16620.0,16619.0,0.00040121]
[1672609355563,0.18286987,16620.0,16619.0,0.00040121]
[1672609355779,0.48356987,16620.0,16619.0,0.00040121]
[1672609356510,0.18286987,16620.0,16619.0,0.00040121]
[1672609356719,0.48356987,16620.0,16619.0,0.00040121]
[1672609361134,0.18286987,16620.0,16619.0,0.00040121]
[1672609361345,0.48356987,16620.0,16619.0,0.00040121]
[1672609372393,0.18286987,16620.0,16619.0,0.00040121]
[1672609372603,0.48356987,16620.0,16619.0,0.00040121]
[1672609373957,0.18286987,16620.0,16619.0,0.00040121]
[1672609374172,0.48356987,16620.0,16619.0,0.00040121]
[1672609377541,0.18286987,16620.0,16619.0,0.00040121]
[1672609378268,0.48356987,16620.0,16619.0,0.00040121]
[1672609382273,0.48356987,16620.0,16619.0,0.0002511]
[1672609388991,0.18286987,16620.0,16619.0,0.0002511]
[1672609389413,0.48356987,16620.0,16619.0,0.0002511]
[1672609396776,0.18286987,16620.0,16619.0,0.0002511]
[1672609397205,0.48356987,16620.0,16619.0,0.0002511]
[1672609397409,0.18286987,16620.0,16619.0,0.0002511]
[1672609397724,0.48356987,16620.0,16619.0,0.0002511]
[1672609404132,0.18286987,16620.0,16619.0,0.0002511]
[1672609411806,0.48356987,16620.0,16619.0,0.0002511]
[1672609412228,0.18286987,16620.0,16619.0,0.0002511]
[1672609412545,0.48356987,16620.0,16619.0,0.0002511]
[1672609422632,0.18286987,16620.0,16619.0,0.0002511]
[1672609422846,0.48356987,16620.0,16619.0,0.0002511]
[1672609427578,0.48356987,16620.0,16619.0,0.00010117]
[1672609428526,0.18286987,16620.0,16619.0,0.00010117]
[1672609428745,0.48356987,16620.0,16619.0,0.00010117]
[1672609430006,0.18286987,16620.0,16619.0,0.00010117]
[1672609430202,0.48356987,16620.0,16619.0,0.00010117]
[1672609430629,0.18286987,16620.0,16619.0,0.00010117]
[1672609430841,0.48356987,16620.0,16619.0,0.00010117]
[1672609438507,0.18286987,16620.0,16619.0,0.00010117]
[1672609438935,0.48356987,16620.0,16619.0,0.00010117]
[1672609439130,0.18286987,16620.0,16619.0,0.00010117]
[1672609439344,0.48356987,16620.0,16619.0,0.00010117]
[1672609439555,0.18286987,16620.0,16619.0,0.00010117]
[1672609439765,0.48356987,16620.0,16619.0,0.00010117]
[1672609439984,0.18286987,16620.0,16619.0,0.00010117]
[1672609440296,0.48356987,16620.0,16619.0,0.00010117]
[1672609441139,0.18286987,16620.0,16619.0,0.00010117]
[1672609441345,0.48356987,16620.0,16619.0,0.00010117]
[1672609443657,0.18286987,16620.0,16619.0,0.00010117]
[1672609443864,0.48356987,16620.0,16619.0,0.00010117]
[1672609447858,0.18286987,16620.0,16619.0,0.00010117]
[1672609448069,0.48356987,16620.0,16619.0,0.00010117]
[1672609449954,0.18286987,16620.0,16619.0,0.00010117]
[1672609450166,0.48356987,16620.0,16619.0,0.00010117]
[1672609455108,0.18286987,16620.0,16619.0,0.00010117]
[1672609460261,0.48356987,16620.0,16619.0,0.00010117]
[1672609470565,0.48334275,16620.0,16619.0,0.00010117]
[1672609472140,0.18264275,16620.0,16619.0,0.00010117]
[1672609472456,0.48334275,16620.0,16619.0,0.00010117]
[1672609477069,0.18264275,16620.0,16619.0,0.00010117]
[1672609477278,0.48334275,16620.0,16619.0,0.00010117]
[1672609501995,0.18264275,16620.0,16619.0,0.00010117]
[1672609502302,0.48334275,16620.0,16619.0,0.00010117]
[1672609509979,0.18264275,16620.0,16619.0,0.00010117]
[1672609519653,0.05003906,16619.0,16618.0,0.3007]
[1672609519861,3.906e-05,16619.0,16618.0,0.3007]
[1672609521217,0.13303906,16619.0,16618.0,0.3017]
[1672609536682,0.13303906,16619.0,16618.0,0.001]
[1672609537198,0.13303906,16619.0,16618.0,0.3017]
[1672609542349,0.13303906,16619.0,16618.0,0.001]
[1672609542567,0.13303906,16619.0,16618.0,0.3017]
[1672609543091,0.13303906,16619.0,16618.0,0.001]
[1672609543293,0.13303906,16619.0,16618.0,0.3017]
[1672609543501,0.13303906,16619.0,16618.0,0.001]
[1672609543711,0.13303906,16619.0,16618.0,0.3017]
[1672609547608,0.1329036,16619.0,16618.0,0.3017]
[1672609552443,0.1329036,16619.0,16618.0,0.001]
[1672609552654,0.1329036,16619.0,16618.0,0.3017]
[1672609553593,0.1329036,16619.0,16618.0,0.001]
[1672609553916,0.1329036,16619.0,16618.0,0.3017]
[1672609570876,0.1329036,16619.0,16618.0,0.001]
[1672609571075,0.1329036,16619.0,16618.0,0.3017]
[1672609578051,0.1329036,16619.0,16618.0,0.001]
[1672609578237,0.1329036,16619.0,16618.0,0.3017]
[1672609583818,0.1329036,16619.0,16618.0,0.001]
[1672609584026,0.1329036,16619.0,16618.0,0.3017]
[1672609595682,0.1329036,16619.0,16618.0,0.30155709]
[1672609601020,0.1329036,16619.0,16618.0,0.00085709]
[1672609601231,0.1329036,16619.0,16618.0,0.30155709]
[1672609601442,0.1329036,16619.0,16618.0,0.00085709]
[1672609601762,0.1329036,16619.0,16618.0,0.30155709]
[1672609606921,0.1329036,16619.0,16618.0,0.00085709]
[1672609607120,0.1329036,16619.0,16618.0,0.30155709]
[1672609613118,0.1329036,16619.0,16618.0,0.00085709]
[1672609613437,0.1329036,16619.0,16618.0,0.30155709]
[1672609613638,0.1329036,16619.0,16618.0,0.00085709]
[1672609613843,0.1329036,16619.0,16618.0,0.30155709]
[1672609614912,0.1329036,16619.0,16618.0,0.00085709]
[1672609615113,0.1329036,16619.0,16618.0,0.30155709]
[1672609636979,0.1329036,16619.0,16618.0,0.00085709]
[1672609642971,0.1329036,16619.0,16618.0,0.00070398]
[1672609643591,0.13270979,16619.0,16618.0,0.00070398]
[1672609648958,0.43340979,16619.0,16618.0,0.00070398]
[1672609650001,0.13270979,16619.0,16618.0,0.00070398]
[1672609650216,0.43340979,16619.0,16618.0,0.00070398]
[1672609651579,0.13270979,16619.0,16618.0,0.00070398]
[1672609651897,0.43340979,16619.0,16618.0,0.00070398]
[1672609652419,0.13270979,16619.0,16618.0,0.00070398]
[1672609652635,0.43340979,16619.0,16618.0,0.00070398]
[1672609654534,0.13270979,16619.0,16618.0,0.00070398]
[1672609654850,0.43340979,16619.0,16618.0,0.00070398]
[1672609656841,0.13270979,16619.0,16618.0,0.00070398]
[1672609657055,0.43340979,16619.0,16618.0,0.00070398]
[1672609657792,0.13270979,16619.0,16618.0,0.00070398]
[1672609657999,0.43340979,16619.0,16618.0,0.00070398]
[1672609660944,0.13270979,16619.0,16618.0,0.00070398]
[1672609661263,0.43340979,16619.0,16618.0,0.00070398]
[1672609662620,0.13270979,16619.0,16618.0,0.00070398]
[1672609666100,0.43340979,16619.0,16618.0,0.00070398]
[1672609675035,0.13270979,16619.0,16618.0,0.00070398]
[1672609677036,0.13270979,16619.0,16618.0,0.05070398]
[1672609679344,0.13270979,16619.0,16618.0,0.00070398]
[1672609680715,0.13270979,16619.0,16618.0,0.05070398]
[1672609685024,0.13270979,16619.0,16618.0,0.00070398]
[1672609688065,0.13270979,16619.0,16618.0,0.00052385]
[1672609696067,0.43340979,16619.0,16618.0,0.00052385]
[1672609697110,0.13270979,16619.0,16618.0,0.00052385]
[1672609701099,0.13270979,16619.0,16618.0,0.30122385]
[1672609714976,0.13270979,16619.0,16618.0,0.00052385]
[1672609715820,0.13270979,16619.0,16618.0,0.05052385]
[1672609716666,0.13270979,16619.0,16618.0,0.00052385]
[1672609718026,0.13270979,16619.0,16618.0,0.05052385]
[1672609726427,0.13270979,16619.0,16618.0,0.00052385]
[1672609737368,0.13270979,16619.0,16618.0,0.05052385]
[1672609740831,0.13270979,16619.0,16618.0,0.05040316]
[1672609745880,0.13270979,16619.0,16618.0,0.35110316]
[1672609746507,0.13270979,16619.0,16618.0,0.05040316]
[1672609746925,0.13270979,16619.0,16618.0,0.35110316]
[1672609747761,0.13270979,16619.0,16618.0,0.05040316]
[1672609749246,0.13270979,16619.0,16618.0,0.35110316]
[1672609749663,0.13270979,16619.0,16618.0,0.05040316]
[1672609749875,0.13270979,16619.0,16618.0,0.35110316]
[1672609752813,0.13270979,16619.0,16618.0,0.05040316]
[1672609770146,0.13270979,16619.0,16618.0,0.35110316]
[1672609780029,0.13270979,16619.0,16618.0,0.05040316]
[1672609780245,0.13270979,16619.0,16618.0,0.35110316]
[1672609782657,0.13270979,16619.0,16618.0,0.05040316]
[1672609782975,0.13270979,16619.0,16618.0,0.35110316]
[1672609784539,0.13270979,16619.0,16618.0,0.05040316]
[1672609784967,0.13270979,16619.0,16618.0,0.35110316]
[1672609786242,0.13270979,16619.0,16618.0,0.05040316]
[1672609786443,0.13270979,16619.0,16618.0,0.35110316]
[1672609793065,0.13270979,16619.0,16618.0,0.3509304]
[1672609798537,0.13270979,16619.0,16618.0,0.0502304]
[1672609798953,0.13270979,16619.0,16618.0,0.3509304]
[1672609799482,0.13270979,16619.0,16618.0,0.0502304]
[1672609799692,0.13270979,16619.0,16618.0,0.3509304]
[1672609810728,0.13270979,16619.0,16618.0,0.0502304]
[1672609810929,0.13270979,16619.0,16618.0,0.3509304]
[1672609812090,0.13270979,16619.0,16618.0,0.0502304]
[1672609812408,0.13270979,16619.0,16618.0,0.3509304]
[1672609822917,0.13270979,16619.0,16618.0,0.0502304]
[1672609823132,0.13270979,16619.0,16618.0,0.3509304]
[1672609823754,0.13270979,16619.0,16618.0,0.0502304]
[1672609823969,0.13270979,16619.0,16618.0,0.3509304]
[1672609829638,0.13270979,16619.0,16618.0,0.0502304]
[1672609829855,0.13270979,16619.0,16618.0,0.3509304]
[1672609833321,0.13270979,16619.0,16618.0,0.0502304]
[1672609833526,0.13270979,16619.0,16618.0,0.3509304]
[1672609836787,0.13270979,16619.0,16618.0,0.0502304]
[1672609837103,0.13270979,16619.0,16618.0,0.3509304]
[1672609837529,0.13270979,16619.0,16618.0,0.0502304]
[1672609837731,0.13270979,16619.0,16618.0,0.3509304]
[1672609838674,0.13270979,16619.0,16618.0,0.0502304]
[1672609838885,0.13270979,16619.0,16618.0,0.3509304]
[1672609840775,0.13270979,16619.0,16618.0,0.0502304]
[1672609840985,0.13270979,16619.0,16618.0,0.3509304]
[1672609843930,0.13270979,16619.0,16618.0,0.0502304]
[1672609844248,0.13270979,16619.0,16618.0,0.3509304]
[1672609845293,0.13270979,16619.0,16618.0,0.35079536]
[1672609859595,0.13270979,16619.0,16618.0,0.05009536]
[1672609859807,0.13270979,16619.0,16618.0,0.35079536]
[1672609860649,0.13270979,16619.0,16618.0,0.05009536]
[1672609860857,0.13270979,16619.0,16618.0,0.35079536]
[1672609862644,0.13270979,16619.0,16618.0,0.05009536]
[1672609863274,0.13270979,16619.0,16618.0,0.35079536]
[1672609865794,0.13270979,16619.0,16618.0,0.05009536]
[1672609866005,0.13270979,16619.0,16618.0,0.35079536]
[1672609867374,0.13270979,16619.0,16618.0,0.05009536]
[1672609867796,0.13270979,16619.0,16618.0,0.35079536]
[1672609871780,0.13270979,16619.0,16618.0,0.05009536]
[1672609872204,0.13270979,16619.0,16618.0,0.35079536]
[1672609872738,0.13270979,16619.0,16618.0,0.05009536]
[1672609873254,0.13270979,16619.0,16618.0,0.35079536]
[1672609877245,0.13270979,16619.0,16618.0,0.05009536]
[1672609877463,0.13270979,16619.0,16618.0,0.35079536]
[1672609879133,0.13270979,16619.0,16618.0,0.05009536]
[1672609879339,0.13270979,16619.0,16618.0,0.35079536]